fUST/lending_fUST_20250528
["ID","MTS","AMOUNT","RATE_DAILY","PERIOD"]
[362680617,1748394650827,-508.15733988,0.00021046,2]
[362680619,1748394650836,-500.0,0.00021046,2]
[362680621,1748394650846,-500.0,0.00021046,2]
[362680623,1748394650855,-600.0,0.00021046,2]
[362680625,1748394650864,-501.07525116,0.00021046,2]
[362680627,1748394650874,-500.0,0.00021046,2]
[362680629,1748394650883,-500.0,0.00021046,2]
[362680631,1748394650893,-500.42360813,0.00021046,2]
[362680633,1748394650902,-500.0,0.00021046,2]
[362680635,1748394650912,-500.0,0.00021046,2]
[362680637,1748394650921,-500.0,0.00021046,2]
[362680639,1748394650931,-430.0,0.00021095,2]
[362680641,1748394650942,-430.0,0.00021095,2]
[362680643,1748394650951,-430.0,0.00021095,2]
[362680645,1748394650961,-430.0,0.00021095,2]
[362680647,1748394650970,-430.0,0.00021095,2]
[362680649,1748394650980,-514.43,0.00021095,2]
[362680651,1748394650989,-611.29,0.00021095,2]
[362680653,1748394650998,-394.4,0.00021095,2]
[362680655,1748394651007,-430.0,0.00021095,2]
[362680657,1748394651016,-1187.51,0.00021095,2]
[362680659,1748394651025,-430.0,0.00021095,2]
[362680660,1748394651035,-430.0,0.00021095,2]
[362680663,1748394651044,-430.0,0.00021095,2]
[362680665,1748394651053,-430.0,0.00021095,2]
[362680666,1748394651062,-307.53,0.00021095,2]
[362680668,1748394651071,-564.86,0.00021095,2]
[362680670,1748394651081,-600.06,0.00021095,2]
[362680672,1748394651090,-430.0,0.00021095,2]
[362680674,1748394651099,-1836.92,0.00021095,2]
[362680676,1748394651109,-430.0,0.00021095,2]
[362680679,1748394651119,-968.0,0.00021095,2]
[362680681,1748394651128,-430.0,0.00021095,2]
[362680683,1748394651139,-430.0,0.00021095,2]
[362680684,1748394651148,-430.0,0.00021095,2]
[362680687,1748394651157,-430.0,0.00021095,2]
[362680689,1748394651166,-476.22,0.00021095,2]
[362680691,1748394651175,-430.0,0.00021095,2]
[362680693,1748394651184,-524.62,0.00021095,2]
[362680695,1748394651194,-430.0,0.00021095,2]
[362680697,1748394651204,-430.0,0.00021095,2]
[362680698,1748394651213,-374.76,0.00021095,2]
[362680701,1748394651222,-430.0,0.00021095,2]
[362680703,1748394651232,-430.0,0.00021095,2]
[362680705,1748394651241,-430.0,0.00021095,2]
[362680707,1748394651250,-573.75,0.00021095,2]
[362680709,1748394651260,-430.0,0.00021095,2]
[362680711,1748394651269,-441.22,0.00021095,2]
[362680713,1748394651279,-430.0,0.00021095,2]
[362680714,1748394651288,-430.0,0.00021095,2]
[362680716,1748394651297,-906.49,0.00021095,2]
[362680718,1748394651307,-430.0,0.00021095,2]
[362680720,1748394651316,-514.67,0.00021095,2]
[362680723,1748394651326,-430.0,0.00021095,2]
[362680725,1748394651336,-500.5719268,0.00021156,2]
[362680727,1748394651345,-500.0,0.00021156,2]
[362680729,1748394651354,-500.0,0.00021156,2]
[362680731,1748394651363,-500.0,0.00021156,2]
[362680733,1748394651373,-500.0,0.00021156,2]
[362680735,1748394651382,-500.0,0.00021156,2]
[362680737,1748394651391,-501.75648212,0.00021156,2]
[362680739,1748394651400,-500.0,0.00021156,2]
[362680741,1748394651409,-500.0,0.00021156,2]
[362680743,1748394651418,-500.0,0.00021164,2]
[362680745,1748394651427,-544.87753436,0.00021176,4]
[362680747,1748394651436,-500.0,0.00021294,2]
[362680749,1748394651446,-500.48255698,0.00021294,2]
[362680751,1748394651454,-500.0,0.00021294,2]
[362680753,1748394651465,-544.87753436,0.00021314,5]
[362680755,1748394651475,-500.0,0.00021318,2]
[362680757,1748394651484,-402.445926,0.00021318,2]
[362680759,1748394651493,-402.445926,0.00021318,2]
[362680761,1748394651502,-500.0,0.00021347,2]
[362680763,1748394651511,-500.0,0.00021368,2]
[362680765,1748394651520,-1000.0,0.00021368,2]
[362680767,1748394651530,-430.0,0.00021369,2]
[362680769,1748394651539,-430.0,0.00021369,2]
[362680771,1748394651548,-430.0,0.00021369,2]
[362680773,1748394651557,-430.0,0.00021369,2]
[362680775,1748394651566,-430.0,0.00021369,2]
[362680777,1748394651575,-514.43,0.00021369,2]
[362680778,1748394651586,-611.29,0.00021369,2]
[362680780,1748394651595,-430.0,0.00021369,2]
[362680782,1748394651604,-1187.51,0.00021369,2]
[362680784,1748394651614,-430.0,0.00021369,2]
[362680786,1748394651623,-430.0,0.00021369,2]
[362680789,1748394651634,-430.0,0.00021369,2]
[362680790,1748394651644,-430.0,0.00021369,2]
[362680793,1748394651653,-564.86,0.00021369,2]
[362680794,1748394651664,-600.06,0.00021369,2]
[362680796,1748394651673,-430.0,0.00021369,2]
[362680798,1748394651683,-1836.92,0.00021369,2]
[362680801,1748394651692,-430.0,0.00021369,2]
[362680803,1748394651702,-968.0,0.00021369,2]
[362680804,1748394651711,-430.0,0.00021369,2]
[362680806,1748394651721,-338.33,0.00021369,2]
[362680808,1748394651731,-430.0,0.00021369,2]
[362680810,1748394651740,-476.22,0.00021369,2]
[362680812,1748394651749,-430.0,0.00021369,2]
[362680814,1748394651759,-524.62,0.00021369,2]
[362680816,1748394651768,-430.0,0.00021369,2]
[362680818,1748394651777,-430.0,0.00021369,2]
[362680820,1748394651787,-430.0,0.00021369,2]
[362680822,1748394651796,-430.0,0.00021369,2]
[362680824,1748394651806,-430.0,0.00021369,2]
[362680826,1748394651815,-573.75,0.00021369,2]
[362680828,1748394651825,-430.0,0.00021369,2]
[362680830,1748394651834,-441.22,0.00021369,2]
[362680832,1748394651843,-430.0,0.00021369,2]
[362680834,1748394651853,-430.0,0.00021369,2]
[362680836,1748394651861,-906.49,0.00021369,2]
[362680838,1748394651871,-491.52,0.00021369,2]
[362680840,1748394651880,-514.67,0.00021369,2]
[362680842,1748394651889,-430.0,0.00021369,2]
[362680844,1748394651899,-503.74229724,0.00021375,2]
[362680846,1748394651908,-1002.16540549,0.00021385,2]
[362680848,1748394651919,-500.0,0.00021406,2]
[362680850,1748394651928,-160.0,0.00021451,2]
[362680852,1748394651937,-500.0,0.00021451,2]
[362680854,1748394651947,-544.87753436,0.00021452,5]
[362680856,1748394651956,-151.0,0.00021464,2]
[362680858,1748394651965,-500.0,0.00021587,2]
[362680860,1748394651974,-500.0,0.00021587,2]
[362680870,1748394652055,-544.87753436,0.0002159,5]
[362680872,1748394652065,-500.0,0.00021594,2]
[362680874,1748394652074,-1000.0,0.00021594,2]
[362680876,1748394652084,-1057.41873304,0.00021594,2]
[362680878,1748394652094,-1200.0,0.00021594,2]
[362680880,1748394652103,-215.19637336,0.00021594,2]
[362680882,1748394652113,-500.0,0.00021594,2]
[362680884,1748394652122,-500.0,0.00021594,2]
[362680886,1748394652131,-1000.0,0.00021594,2]
[362680888,1748394652141,-1000.0,0.00021594,2]
[362680890,1748394652150,-2713.67,0.00021612,2]
[362680892,1748394652159,-430.0,0.00021643,2]
[362680894,1748394652168,-430.0,0.00021643,2]
[362680896,1748394652177,-430.0,0.00021643,2]
[362680898,1748394652186,-430.0,0.00021643,2]
[362680900,1748394652196,-430.0,0.00021643,2]
[362680902,1748394652206,-514.43,0.00021643,2]
[362680904,1748394652215,-611.29,0.00021643,2]
[362680906,1748394652225,-159.57533528,0.00021643,2]
[362680908,1748394652234,-1187.51,0.00021643,2]
[362680910,1748394652244,-430.0,0.00021643,2]
[362680912,1748394652254,-430.0,0.00021643,2]
[362680914,1748394652264,-430.0,0.00021643,2]
[362680916,1748394652274,-430.0,0.00021643,2]
[362680918,1748394652283,-564.86,0.00021643,2]
[362680920,1748394652293,-600.06,0.00021643,2]
[362680922,1748394652302,-430.0,0.00021643,2]
[362680924,1748394652312,-1836.92,0.00021643,2]
[362680926,1748394652321,-430.0,0.00021643,2]
[362680928,1748394652331,-968.0,0.00021643,2]
[362680930,1748394652340,-430.0,0.00021643,2]
[362680932,1748394652349,-430.0,0.00021643,2]
[362680934,1748394652358,-476.22,0.00021643,2]
[362680936,1748394652367,-430.0,0.00021643,2]
[362680938,1748394652377,-524.62,0.00021643,2]
[362680940,1748394652386,-430.0,0.00021643,2]
[362680942,1748394652395,-366.01887933,0.00021643,2]
[362680944,1748394652404,-430.0,0.00021643,2]
[362680946,1748394652413,-430.0,0.00021643,2]
[362680948,1748394652422,-430.0,0.00021643,2]
[362680950,1748394652431,-573.75,0.00021643,2]
[362680952,1748394652439,-430.0,0.00021643,2]
[362680954,1748394652449,-441.22,0.00021643,2]
[362680955,1748394652458,-430.0,0.00021643,2]
[362680956,1748394652467,-430.0,0.00021643,2]
[362680957,1748394652474,-906.49,0.00021643,2]
[362680958,1748394652482,-514.67,0.00021643,2]
[362680959,1748394652490,-430.0,0.00021643,2]
[362680960,1748394652499,-501.09072617,0.00021704,2]
[362680961,1748394652507,-1000.0,0.00021704,2]
[362680962,1748394652516,-502.42334305,0.00021704,2]
[362680963,1748394652527,-695.67954702,0.00021704,2]
[362680964,1748394652535,-501.94954555,0.00021704,2]
[362680965,1748394652544,-500.98659777,0.00021704,2]
[362680966,1748394652552,-544.87753436,0.00021728,5]
[362680967,1748394652561,-1495.990904,0.000218,2]
[362680968,1748394652570,-215.0738,0.00021811,2]
[362680969,1748394652579,-1000.0,0.00021842,2]
[362680970,1748394652593,-500.0,0.00021842,2]
[362680971,1748394652602,-544.87753436,0.00021866,6]
[362680972,1748394652611,-1000.0,0.00021866,2]
[362680973,1748394652620,-1000.0,0.00021895,2]
[362680974,1748394652629,-1500.0,0.00021916,2]
[362680976,1748394652639,-430.0,0.00021917,2]
[362680978,1748394652649,-437.08756612,0.00021917,2]
[362680980,1748394652658,-430.0,0.00021917,2]
[362680982,1748394652668,-430.0,0.00021917,2]
[362680984,1748394652678,-200.0,0.00021917,2]
[362680986,1748394652687,-500.0,0.00021917,2]
[362680988,1748394652698,-500.0,0.00021917,2]
[362680990,1748394652707,-500.0,0.00021917,2]
[362680991,1748394652717,-165.78001106,0.00021917,2]
[362680993,1748394652727,-430.0,0.00021917,2]
[362680995,1748394652736,-514.43,0.00021917,2]
[362680997,1748394652746,-611.29,0.00021917,2]
[362681000,1748394652756,-1187.51,0.00021917,2]
[362681002,1748394652766,-430.0,0.00021917,2]
[362681004,1748394652775,-500.0,0.00021917,2]
[362681006,1748394652784,-430.0,0.00021917,2]
[362681008,1748394652794,-430.0,0.00021917,2]
[362681010,1748394652803,-259.00760145,0.00021917,2]
[362681012,1748394652813,-564.86,0.00021917,2]
[362681014,1748394652823,-600.06,0.00021917,2]
[362681016,1748394652832,-430.0,0.00021917,2]
[362681018,1748394652841,-1836.92,0.00021917,2]
[362681020,1748394652851,-430.0,0.00021917,2]
[362681022,1748394652860,-968.0,0.00021917,2]
[362681024,1748394652870,-430.0,0.00021917,2]
[362681026,1748394652879,-430.0,0.00021917,2]
[362681028,1748394652889,-476.22,0.00021917,2]
[362681030,1748394652898,-430.0,0.00021917,2]
[362681032,1748394652907,-524.62,0.00021917,2]
[362681034,1748394652916,-430.0,0.00021917,2]
[362681036,1748394652925,-430.0,0.00021917,2]
[362681038,1748394652934,-430.0,0.00021917,2]
[362681040,1748394652943,-484.09,0.00021917,2]
[362681042,1748394652952,-573.75,0.00021917,2]
[362681044,1748394652961,-430.0,0.00021917,2]
[362681046,1748394652970,-430.0,0.00021917,2]
[362681048,1748394652979,-268.28,0.00021917,2]
[362681050,1748394652988,-441.22,0.00021917,2]
[362681052,1748394652999,-430.0,0.00021917,2]
[362681054,1748394653009,-451.29283964,0.00021917,2]
[362681056,1748394653018,-906.49,0.00021917,2]
[362681058,1748394653027,-514.67,0.00021917,2]
[362681060,1748394653037,-430.0,0.00021917,2]
[362681062,1748394653046,-1000.0,0.00021954,2]
[362681064,1748394653055,-500.0,0.00021968,2]
[362681066,1748394653064,-1000.000001,0.0002198,2]
[362681067,1748394653073,-359.72792702,0.00021985,2]
[362681069,1748394653082,-154.0,0.00022,2]
[362681071,1748394653091,-154.0,0.00022,2]
[362681073,1748394653100,-544.87753436,0.00022003,6]
[362681075,1748394653110,-151.0,0.00022012,7]
[362681077,1748394653119,-402.445926,0.00022013,7]
[362681079,1748394653128,-402.445926,0.00022013,7]
[362681081,1748394653138,-500.0,0.00022135,2]
[362681083,1748394653147,-500.0,0.00022135,2]
[362681085,1748394653157,-544.87753436,0.00022141,6]
[362681087,1748394653166,-1500.0,0.00022142,2]
[362681089,1748394653175,-1800.0,0.00022142,2]
[362681091,1748394653185,-1500.0,0.00022142,2]
[362681093,1748394653195,-1500.0,0.00022142,2]
[362681096,1748394653205,-24493.04937591,0.00022191,3]
[362681098,1748394653214,-35643.54155024,0.00022191,2]
[362681099,1748394653223,-430.0,0.00022191,2]
[362681101,1748394653232,-430.0,0.00022191,2]
[362681103,1748394653241,-430.0,0.00022191,2]
[362681105,1748394653250,-430.0,0.00022191,2]
[362681107,1748394653259,-514.43,0.00022191,2]
[362681109,1748394653268,-611.29,0.00022191,2]
[362681111,1748394653277,-1187.51,0.00022191,2]
[362681113,1748394653287,-430.0,0.00022191,2]
[362681115,1748394653296,-430.0,0.00022191,2]
[362681118,1748394653306,-430.0,0.00022191,2]
[362681120,1748394653315,-564.86,0.00022191,2]
[362681121,1748394653325,-600.06,0.00022191,2]
[362681123,1748394653334,-430.0,0.00022191,2]
[362681125,1748394653344,-1836.92,0.00022191,2]
[362681127,1748394653354,-430.0,0.00022191,2]
[362681129,1748394653363,-968.0,0.00022191,2]
[362681131,1748394653373,-430.0,0.00022191,2]
[362681133,1748394653383,-430.0,0.00022191,2]
[362681135,1748394653393,-476.22,0.00022191,2]
[362681138,1748394653402,-430.0,0.00022191,2]
[362681140,1748394653412,-524.62,0.00022191,2]
[362681142,1748394653422,-430.0,0.00022191,2]
[362681143,1748394653432,-430.0,0.00022191,2]
[362681146,1748394653441,-430.0,0.00022191,2]
[362681147,1748394653451,-573.75,0.00022191,2]
[362681150,1748394653462,-430.0,0.00022191,2]
[362681151,1748394653471,-441.22,0.00022191,2]
[362681153,1748394653480,-430.0,0.00022191,2]
[362681155,1748394653490,-906.49,0.00022191,2]
[362681157,1748394653500,-514.67,0.00022191,2]
[362681167,1748394653586,-430.0,0.00022191,2]
[362681169,1748394653598,-2236.0,0.00022218,2]
[362681171,1748394653608,-707.0,0.00022218,2]
[362681173,1748394653618,-1500.0,0.00022252,2]
[362681175,1748394653629,-500.0,0.0002226,2]
[362681177,1748394653639,-544.87753436,0.00022279,6]
[362681179,1748394653648,-1487.88,0.000223,2]
[362681181,1748394653659,-1500.0,0.0002239,2]
[362681183,1748394653669,-151.0,0.000224,9]
[362681185,1748394653679,-1500.0,0.00022414,2]
[362681187,1748394653688,-544.87753436,0.00022417,7]
[362681189,1748394653697,-1513.66233292,0.00022443,2]
[362681191,1748394653707,-1000.0,0.00022464,2]
[362681193,1748394653717,-430.0,0.00022465,2]
[362681195,1748394653726,-430.0,0.00022465,2]
[362681197,1748394653735,-430.0,0.00022465,2]
[362681199,1748394653745,-324.20818622,0.00022465,2]
[362682121,1748394994305,226.744184,0.00013699,2]
[362682125,1748395252602,169.136944,0.00018333,120]
[362682126,1748395364863,300.0,0.00024658,120]
[362682127,1748395492254,-169.136944,0.00018333,2]
[362682128,1748395492276,-300.0,0.0001839,2]
[362682129,1748395492299,-9530.863056,0.00018391,2]
[362682138,1748395629135,-313.94113085,0.00018206,2]
[362682176,1748395831878,-300.0,0.00018389,2]
[362682178,1748395831889,-1200.0,0.0001839,2]
[362682180,1748395831898,-14625.8612179,0.00018391,2]
[362682182,1748395831908,-812.44,0.0001849,2]
[362682184,1748395831918,-288.749516,0.0001853,2]
[362682186,1748395831927,-228.85019724,0.00019078,2]
[362682188,1748395831937,-500.0,0.00019175,2]
[362682190,1748395831946,-603.00375145,0.00019175,2]
[362682192,1748395831960,-500.0,0.00019175,2]
[362682194,1748395831969,-500.0,0.00019175,2]
[362682196,1748395831980,-500.0,0.00019175,2]
[362682198,1748395831989,-507.65932331,0.00019175,2]
[362682200,1748395831999,-471.0390638,0.00019175,2]
[362682202,1748395832009,-466.07415366,0.00019175,2]
[362682204,1748395832019,-500.0,0.00019175,2]
[362682206,1748395832028,-1370.48509438,0.00019176,2]
[362682208,1748395832040,-16400.89222364,0.00019176,2]
[362682210,1748395832049,-500.0,0.00019177,2]
[362682211,1748395832059,-500.0,0.00019177,2]
[362682212,1748395832068,-500.0,0.00019177,2]
[362682213,1748395832077,-269.59020217,0.00019177,2]
[362682214,1748395832087,-500.0,0.00019177,2]
[362682215,1748395832096,-547.10994137,0.00019177,2]
[362682216,1748395832106,-468.87844875,0.00019177,2]
[362682217,1748395832115,-500.0,0.00019177,2]
[362682218,1748395832124,-432.80904633,0.00019178,2]
[362682219,1748395832134,-430.0,0.00019178,2]
[362682220,1748395832144,-430.0,0.00019178,2]
[362682222,1748395832153,-430.0,0.00019178,2]
[362682224,1748395832163,-430.0,0.00019178,2]
[362682226,1748395832173,-430.0,0.00019178,2]
[362682228,1748395832182,-331.62190277,0.00019178,2]
[362682230,1748395832191,-164.73649913,0.00019178,2]
[362682232,1748395832204,-265.26350087,0.00019178,2]
[362682233,1748395832213,-430.0,0.00019178,2]
[362682235,1748395832222,-430.0,0.00019178,2]
[362682237,1748395832233,-195.5957514,0.00019178,2]
[362682239,1748395832244,-214.4042486,0.00019178,2]
[362682240,1748395832253,-430.0,0.00019178,2]
[362682242,1748395832263,-430.0,0.00019178,2]
[362682244,1748395832272,-430.0,0.00019178,2]
[362682246,1748395832281,-430.0,0.00019178,2]
[362682247,1748395832291,-360.20800516,0.00019178,2]
[362682250,1748395832318,-267.88980492,0.00019175,2]
[362682275,1748395838050,-226.26700201,0.00019175,2]
[362682277,1748395838061,-224.16288731,0.00019175,2]
[362682280,1748395838073,-275.83711269,0.00019175,2]
[362682281,1748395838082,-73.15923622,0.00019178,2]
[362682283,1748395838092,-430.0,0.00019178,2]
[362682285,1748395838101,-430.0,0.00019178,2]
[362682287,1748395838110,-430.0,0.00019178,2]
[362682289,1748395838121,-430.0,0.00019178,2]
[362682291,1748395838139,-430.0,0.00019178,2]
[362682293,1748395838149,-430.0,0.00019178,2]
[362682295,1748395838159,-546.93,0.00019178,2]
[362682296,1748395838168,-719.66,0.00019178,2]
[362682298,1748395838177,-430.0,0.00019178,2]
[362682300,1748395838187,-430.0,0.00019178,2]
[362682302,1748395838196,-430.0,0.00019178,2]
[362682304,1748395838205,-398.55944812,0.00019178,2]
[362682306,1748395838217,-31.44055188,0.00019178,2]
[362682308,1748395838227,-430.0,0.00019178,2]
[362682310,1748395838236,-430.0,0.00019178,2]
[362682312,1748395838245,-450.0,0.00019178,2]
[362682314,1748395838255,-430.0,0.00019178,2]
[362682316,1748395838266,-430.0,0.00019178,2]
[362682318,1748395838276,-470.0,0.00019178,2]
[362682319,1748395838285,-430.0,0.00019178,2]
[362682322,1748395838304,-430.0,0.00019178,2]
[362682324,1748395838314,-277.87812134,0.00019178,2]
[362682470,1748395840193,-152.12187866,0.00019178,2]
[362682472,1748395840205,-1054.34,0.00019178,2]
[362682474,1748395840216,-430.0,0.00019178,2]
[362682476,1748395840226,-430.0,0.00019178,2]
[362682479,1748395840236,-490.0,0.00019178,2]
[362682481,1748395840246,-151.13778791,0.00019178,2]
[362682483,1748395840258,-278.86221209,0.00019178,2]
[362682485,1748395840267,-430.0,0.00019178,2]
[362682487,1748395840277,-430.0,0.00019178,2]
[362682489,1748395840286,-204.98927014,0.00019178,2]
[362682491,1748395840298,-225.01072986,0.00019178,2]
[362682493,1748395840308,-430.0,0.00019178,2]
[362682495,1748395840318,-430.0,0.00019178,2]
[362682497,1748395840328,-430.0,0.00019178,2]
[362682499,1748395840337,-430.0,0.00019178,2]
[362682502,1748395840347,-519.83,0.00019178,2]
[362682504,1748395840357,-430.0,0.00019178,2]
[362682506,1748395840367,-430.0,0.00019178,2]
[362682508,1748395840377,-430.0,0.00019178,2]
[362682510,1748395840386,-430.0,0.00019178,2]
[362682512,1748395840395,-430.0,0.00019178,2]
[362682514,1748395840405,-235.13968386,0.00019178,2]
[362682516,1748395840414,-430.0,0.00019178,2]
[362682518,1748395840424,-430.0,0.00019178,2]
[362682520,1748395840433,-430.0,0.00019178,2]
[362682522,1748395840443,-430.0,0.00019178,2]
[362682524,1748395840453,-430.0,0.00019178,2]
[362682526,1748395840462,-430.0,0.00019178,2]
[362682528,1748395840471,-500.0,0.00019178,2]
[362682530,1748395840482,-328.093134,0.00019178,2]
[362682532,1748395840491,-500.0,0.00019178,2]
[362682534,1748395840501,-500.0,0.00019178,2]
[362682536,1748395840511,-500.0,0.00019178,2]
[362682538,1748395840520,-500.0,0.00019178,2]
[362682540,1748395840529,-500.0,0.00019178,2]
[362682542,1748395840539,-18.93242726,0.00019178,2]
[362682564,1748395840734,-411.06757274,0.00019178,2]
[362682566,1748395840744,-430.0,0.00019178,2]
[362682568,1748395840754,-430.0,0.00019178,2]
[362682570,1748395840763,-430.0,0.00019178,2]
[362682572,1748395840773,-430.0,0.00019178,2]
[362682574,1748395840782,-72.40001703,0.00019178,2]
[362682577,1748395840794,-324.97025148,0.00019178,2]
[362682579,1748395840805,-32.62973149,0.00019178,2]
[362682581,1748395840815,-430.0,0.00019178,2]
[362682583,1748395840824,-430.0,0.00019178,2]
[362682585,1748395840834,-430.0,0.00019178,2]
[362682587,1748395840843,-430.0,0.00019178,2]
[362682589,1748395840852,-393.32161474,0.00019178,2]
[362682591,1748395840864,-36.67838526,0.00019178,2]
[362682593,1748395840873,-430.0,0.00019178,2]
[362682595,1748395840882,-74.37275162,0.00019178,2]
[362682597,1748395840894,-355.62724838,0.00019178,2]
[362682599,1748395840903,-430.0,0.00019178,2]
[362682601,1748395840912,-430.0,0.00019178,2]
[362682603,1748395840921,-430.0,0.00019178,2]
[362682605,1748395840930,-430.0,0.00019178,2]
[362682607,1748395840940,-430.0,0.00019178,2]
[362682609,1748395840949,-430.0,0.00019178,2]
[362682611,1748395840962,-430.0,0.00019178,2]
[362682613,1748395840972,-430.0,0.00019178,2]
[362682615,1748395840983,-295.32254357,0.00019178,2]
[362682806,1748395842957,-134.67745643,0.00019178,2]
[362682808,1748395842967,-430.0,0.00019178,2]
[362682810,1748395842976,-430.0,0.00019178,2]
[362682812,1748395842988,-154.22356739,0.00019178,2]
[362682818,1748395843039,-275.77643261,0.00019178,2]
[362682820,1748395843049,-430.0,0.00019178,2]
[362682822,1748395843060,-430.0,0.00019178,2]
[362682824,1748395843069,-430.0,0.00019178,2]
[362682827,1748395843079,-430.0,0.00019178,2]
[362682829,1748395843088,-430.0,0.00019178,2]
[362682831,1748395843098,-430.0,0.00019178,2]
[362682833,1748395843108,-430.0,0.00019178,2]
[362682835,1748395843118,-430.0,0.00019178,2]
[362682837,1748395843127,-430.0,0.00019178,2]
[362682839,1748395843137,-370.0,0.00019178,2]
[362682841,1748395843147,-264.71754387,0.00019178,2]
[362682843,1748395843159,-165.28245613,0.00019178,2]
[362682845,1748395843169,-138.20435787,0.00019178,2]
[362683131,1748395845982,-272.24630127,0.00019178,2]
[362684415,1748395891880,172.85,0.0002328,120]
[362684427,1748396249559,227.316632,0.00013699,2]
[362684473,1748397038105,-750.0123917,0.00018176,2]
[362684529,1748397038618,-163.2406306,0.00018221,2]
[362684531,1748397038630,-291.2121528,0.00018467,2]
[362684533,1748397038641,-195.93916453,0.00019078,2]
[362684535,1748397038651,-500.0,0.00019173,2]
[362684537,1748397038662,-500.83214675,0.00019173,2]
[362684540,1748397038672,-502.33038615,0.00019173,2]
[362684542,1748397038682,-300.0,0.00019176,2]
[362684544,1748397038693,-6259.40168545,0.00019177,2]
[362684546,1748397038703,-162.89712818,0.00019177,2]
[362684548,1748397038714,-616.39538253,0.00019177,2]
[362684550,1748397038724,-500.0,0.00019177,2]
[362684553,1748397038736,-500.0,0.00019177,2]
[362684555,1748397038746,-277.12363513,0.00019177,2]
[362684557,1748397038757,-579.79324932,0.00019177,2]
[362684559,1748397038767,-500.0,0.00019177,2]
[362684561,1748397038777,-500.0,0.00019177,2]
[362684563,1748397038789,-214.16211605,0.00019177,2]
[362684568,1748397038801,-511.49514568,0.00019177,2]
[362684571,1748397038812,-842.5625,0.00019178,3]
[362684573,1748397038822,-212.62946336,0.00019178,3]
[362684575,1748397038832,-12311.61097375,0.00019178,3]
[362684589,1748397038997,-33626.73188738,0.00019178,2]
[362684590,1748397039012,-1576.79320797,0.00019178,2]
[362684591,1748397039026,-412.29560855,0.00019178,2]
[362684710,1748397040294,-7322.15336062,0.00019178,2]
[362684712,1748397040304,-404.18950972,0.00019178,2]
[362684714,1748397040314,-430.0,0.00019178,2]
[362684716,1748397040323,-452.61204208,0.00019178,2]
[362684718,1748397040332,-430.0,0.00019178,2]
[362684720,1748397040341,-437.53987073,0.00019178,2]
[362684722,1748397040350,-430.0,0.00019178,2]
[362684724,1748397040363,-401.56277909,0.00019178,2]
[362684726,1748397040372,-430.0,0.00019178,2]
[362684728,1748397040382,-452.0636865,0.00019178,2]
[362684730,1748397040391,-430.0,0.00019178,2]
[362684732,1748397040401,-451.6854309,0.00019178,2]
[362684734,1748397040410,-430.0,0.00019178,2]
[362684736,1748397040419,-430.0,0.00019178,2]
[362684738,1748397040429,-452.72866315,0.00019178,2]
[362684741,1748397040438,-430.0,0.00019178,2]
[362684743,1748397040448,-451.9386472,0.00019178,2]
[362684745,1748397040457,-401.11703724,0.00019178,2]
[362684747,1748397040467,-401.415761,0.00019178,2]
[362684749,1748397040476,-430.0,0.00019178,2]